bitfinex/quotes_ETHUSD_20220311
["timestamp","ask_amount","ask_price","bid_price","bid_amount"]
[1647025623228,1.59937199,2556.4,2556.3,2.6639551]
[1647025624024,2.57757199,2556.4,2556.2,0.25]
[1647025624224,1.59937199,2556.3,2556.2,0.25]
[1647025624926,0.9782,2556.4,2556.2,0.25]
[1647025625125,0.11458301,2556.5,2556.3,2.6639551]
[1647025626575,0.11458301,2556.5,2556.3,2.66805517]
[1647025626973,0.11458301,2556.5,2556.3,0.00410007]
[1647025626974,0.00568379,2556.5,2556.3,0.00410007]
[1647025627180,1.59944351,2556.4,2556.3,0.00410007]
[1647025627378,16.98944351,2556.4,2556.3,0.00410007]
[1647025627576,18.34894417,2556.4,2556.3,0.03703367]
[1647025627775,17.37059417,2556.4,2556.3,0.03703367]
[1647025627974,17.37059417,2556.4,2556.3,0.04113374]
[1647025628777,17.37059417,2556.4,2556.3,0.03703367]
[1647025630127,5.48059417,2556.4,2556.3,0.03703367]
[1647025631126,17.37059417,2556.4,2556.3,0.03703367]
[1647025631331,5.48059417,2556.4,2556.3,0.03703367]
[1647025632335,1.98059417,2556.4,2556.2,0.03800397]
[1647025632535,1.59944351,2556.3,2556.2,0.04101076]
[1647025633441,1.59944351,2556.3,2556.2,0.03703367]
[1647025634273,5.09944351,2556.3,2556.2,0.03703367]
[1647025635072,1.59944351,2556.3,2556.2,0.03703367]
[1647025636276,1.59944351,2556.3,2556.1,2.70449625]
[1647025637077,1.59944351,2556.3,2556.2,0.0009414]
[1647025641675,1.59944351,2556.3,2556.2,0.03798962]
[1647025641676,1.62060205,2556.3,2556.2,0.03798962]
[1647025643681,5.12060205,2556.3,2556.2,0.03798962]
[1647025644084,1.62060205,2556.3,2556.2,0.03798962]
[1647025645122,13.51060205,2556.3,2556.2,0.03798962]
[1647025646529,13.51060205,2556.3,2556.0,2.6639551]
[1647025646530,0.11489627,2556.1,2556.0,2.6639551]
[1647025646930,0.11489627,2556.1,2555.7,0.1955]
[1647025647330,0.11489627,2556.1,2556.0,2.6639551]
[1647025647530,0.11489627,2556.1,2555.7,2.8594551]
[1647025648132,0.11489627,2556.1,2555.9,2.6639551]
[1647025648331,0.11489627,2556.1,2555.7,2.84947026]
[1647025648775,0.11489627,2556.1,2556.0,2.6639551]
[1647025648776,0.07239629,2556.1,2556.0,2.6639551]
[1647025650778,0.07239629,2556.1,2556.0,6.1639551]
[1647025651177,0.07239629,2556.1,2556.0,2.6639551]
[1647025651386,0.07239629,2556.1,2556.0,6.1639551]
[1647025651580,0.07239629,2556.1,2556.0,2.6639551]
[1647025657378,0.07239629,2556.1,2556.0,2.69862971]
[1647025661143,1.67205726,2556.1,2556.0,2.69862971]
[1647025662548,1.67205726,2556.1,2556.0,0.03467461]
[1647025666582,17.06205726,2556.1,2556.0,0.03467461]
[1647025667181,17.06205726,2556.1,2555.7,0.18551516]
[1647025667182,0.06934922,2555.9,2555.7,0.18551516]
[1647025667434,13.48966097,2555.8,2555.7,0.18551516]
[1647025667823,13.48966097,2555.8,2555.6,2.6639551]
[1647025668024,16.98966097,2555.7,2555.6,2.6639551]
[1647025668428,16.98966097,2555.7,2555.2,1.450781]
[1647025668631,16.98966097,2555.7,2555.2,0.03377072]
[1647025668632,14.10286954,2555.6,2555.2,0.03377072]
[1647025668830,11.89,2555.4,2555.2,0.03377072]
[1647025669027,12.752,2555.4,2555.3,0.04206333]
[1647025669226,15.48063822,2555.4,2555.3,0.04206333]
[1647025669427,15.48223822,2555.4,2555.3,0.04206333]
[1647025669626,18.42097662,2555.4,2555.3,0.04206333]
[1647025670029,18.71937662,2555.4,2555.3,0.04206333]
[1647025670236,18.72097662,2555.4,2555.3,6.333e-05]
[1647025670428,19.74137662,2555.4,2555.3,6.333e-05]
[1647025670627,19.73217662,2555.4,2555.3,6.333e-05]
[1647025671028,19.74137662,2555.4,2555.3,6.333e-05]
[1647025671279,19.73977662,2555.4,2555.3,6.333e-05]
[1647025671579,19.74377662,2555.4,2555.3,6.333e-05]
[1647025671777,15.79423822,2555.4,2555.3,6.333e-05]
[1647025671983,2.16218822,2555.4,2555.3,6.333e-05]
[1647025672180,12.452,2555.4,2555.3,6.333e-05]
[1647025672378,12.452,2555.4,2555.3,0.0010421]
[1647025672979,11.89,2555.4,2555.3,0.0010421]
[1647025673181,11.89,2555.6,2555.3,0.0010421]
[1647025673381,1.60008749,2555.5,2555.3,0.0010421]
[1647025673981,3.5,2555.4,2555.3,0.0010421]
[1647025674182,1.95729,2555.5,2555.3,0.0010421]
[1647025674381,11.89,2555.4,2555.3,0.0010421]
[1647025674581,13.4901462,2555.4,2555.3,2.6649972]
[1647025674782,12.19,2555.4,2555.3,2.6649972]
[1647025675230,12.19,2555.4,2555.3,0.0010421]
[1647025675436,17.29016437,2555.4,2555.3,0.0010421]
[1647025675632,18.43976437,2555.4,2555.3,0.0010421]
[1647025675831,19.02376437,2555.4,2555.3,0.0010421]
[1647025676032,20.01456437,2555.4,2555.3,0.0010421]
[1647025676234,19.01376437,2555.4,2555.3,0.0010421]
[1647025676435,19.01296437,2555.4,2555.3,0.0010421]
[1647025676638,19.01296437,2555.4,2554.5,0.1122106]
[1647025676639,11.89,2554.9,2554.5,0.1122106]
[1647025676842,11.89,2554.6,2554.2,0.0285243]
[1647025677038,0.562,2554.5,2554.2,0.03893102]
[1647025677236,11.89,2554.4,2554.3,2.6639551]
[1647025677436,0.562,2554.5,2554.3,2.6639551]
[1647025677635,0.97914,2554.4,2554.3,2.6639551]
[1647025677837,0.562,2554.5,2554.3,2.6639551]
[1647025678686,0.97887,2554.7,2554.4,0.1957]
[1647025678885,0.97887,2554.7,2554.6,2.6639551]
[1647025679085,0.97887,2554.7,2554.6,2.67436182]
[1647025680590,0.97887,2554.7,2554.6,0.01040672]
[1647025680788,1.27887,2554.7,2554.6,0.01040672]
[1647025681391,13.16887,2554.7,2554.6,0.01040672]
[1647025681592,13.73087,2554.7,2554.6,0.01040672]
[1647025681791,13.88287,2554.7,2554.6,0.01040672]
[1647025681991,14.88367,2554.7,2554.6,0.01040672]
[1647025682191,14.88287,2554.7,2554.6,0.01040672]
[1647025682439,14.88687,2554.7,2554.6,0.01040672]
[1647025682629,14.88207,2554.7,2554.6,0.01040672]
[1647025682830,14.73087,2554.7,2554.6,0.01040672]
[1647025683030,13.43087,2554.7,2554.6,0.01040672]
[1647025683832,13.73087,2554.7,2554.6,0.01040672]
[1647025684032,13.73087,2554.7,2554.6,2.67436182]
[1647025684432,13.73087,2554.7,2554.6,0.01040672]
[1647025685234,13.73087,2554.7,2554.6,2.67436182]
[1647025686033,13.43087,2554.7,2554.6,2.67436182]
[1647025686880,13.73087,2554.7,2554.6,2.67436182]
[1647025687481,13.73087,2554.7,2554.6,0.01040672]
[1647025688082,13.8132313,2554.7,2554.6,0.04077889]
[1647025688490,13.8132313,2554.7,2554.2,0.0285243]
[1647025688491,0.0779087,2554.5,2554.2,0.0285243]
[1647025688686,0.97905,2554.4,2554.2,0.0285243]
[1647025688886,0.97905,2554.4,2554.3,2.6639551]
[1647025690337,0.97905,2554.4,2554.2,0.0285243]
[1647025690738,2.25816,2554.4,2554.2,0.0285243]
[1647025690936,2.82016,2554.4,2554.2,0.0285243]
[1647025691335,2.82016,2554.4,2554.3,2.6639551]
[1647025691537,2.82016,2554.4,2554.2,0.0285243]
[1647025691738,2.82016,2554.4,2554.3,2.6639551]
[1647025691935,1.84105,2554.4,2554.2,0.0285243]
[1647025692145,11.89,2554.1,2554.0,1.0365039]
[1647025692338,13.752,2554.1,2554.0,1.0365039]
[1647025692538,17.252,2554.1,2554.0,1.0365039]
[1647025692737,0.06702683,2554.0,2553.9,0.0193555]
[1647025692937,16.01902683,2554.0,2553.9,0.0193555]
[1647025693140,16.53587173,2554.0,2553.7,8.4e-05]
[1647025693344,18.92168415,2553.8,2553.7,8.4e-05]
[1647025693781,19.51301136,2553.7,2553.6,0.0195762]
[1647025694285,19.51301136,2553.7,2553.5,0.0205061]
[1647025694286,21.68837136,2553.7,2553.5,0.0205061]
[1647025694584,19.39,2553.6,2553.5,1e-08]
[1647025694782,17.762,2553.6,2553.5,1e-08]
[1647025694981,17.762,2553.6,2553.5,0.0089294]
[1647025694982,19.72121,2553.6,2553.5,0.0089294]
[1647025695183,15.72121,2553.6,2553.5,0.0089294]
[1647025695383,24.69942,2553.6,2553.5,2.94e-05]
[1647025695587,34.25757713,2553.6,2553.5,0.0178588]
[1647025695786,33.25757713,2553.6,2553.5,0.0178588]
[1647025695985,10.42015713,2553.6,2553.5,3.5178588]
[1647025696187,5.09,2553.8,2553.5,0.0178588]
[1647025696392,5.09,2553.8,2553.6,2.6639551]
[1647025696587,5.09,2553.8,2553.7,2.6639551]
[1647025696789,1.0,2553.9,2553.7,6.1639551]
[1647025696986,1.0,2553.9,2553.7,2.6639551]
[1647025697657,1.0,2553.9,2553.7,2.66803358]
[1647025697857,0.00407786,2554.1,2553.7,2.66803358]
[1647025698058,0.00407786,2554.1,2554.0,2.6639551]
[1647025698459,0.09546558,2554.5,2554.1,0.08011955]
[1647025698661,0.0779087,2554.5,2554.1,0.08011955]
[1647025698860,0.00407795,2554.2,2554.1,0.08011955]
[1647025699759,0.0779087,2554.5,2554.1,0.08011955]
[1647025700059,0.0779087,2554.5,2554.4,2.6639551]
[1647025700264,0.0779087,2554.5,2554.4,2.73962482]
[1647025702189,0.0779087,2554.5,2554.4,7.23962482]
[1647025702388,0.3913,2555.6,2554.5,4.5]
[1647025702585,0.3913,2555.6,2555.5,2.6639551]
[1647025704088,0.3913,2555.6,2555.5,2.6139551]
[1647025704285,1.04770922,2555.9,2555.5,2.6139551]
[1647025704493,0.06934922,2555.9,2555.6,0.06945306]
[1647025704689,0.06934922,2555.9,2555.8,2.6139551]
[1647025704935,0.06934922,2555.9,2555.8,2.68711512]
[1647025705335,0.06934922,2555.9,2555.8,6.18711512]
[1647025705633,0.06934922,2555.9,2555.8,4.64301512]
[1647025705834,0.07239629,2556.1,2555.9,3.0]
[1647025706039,0.00408049,2556.0,2555.9,3.0]
[1647025706238,0.00408049,2556.0,2555.9,6.6139551]
[1647025706436,0.00568379,2556.5,2556.0,3.0]
[1647025706643,0.00568379,2556.5,2556.3,0.97783]
[1647025706838,0.00568379,2556.5,2556.4,2.68746468]
[1647025707544,0.00568379,2556.5,2556.4,6.18746468]
[1647025707739,0.00568379,2556.5,2556.4,7.18746468]
[1647025708038,0.00568379,2556.5,2556.4,8.39026468]
[1647025708240,0.3915,2557.2,2557.0,1.83718997]
[1647025708440,0.3915,2557.2,2557.1,0.9079859]
[1647025708694,1.12349575,2558.0,2557.2,3.0]
[1647025708695,0.71213721,2557.9,2557.2,3.0]
[1647025708883,1.16489558,2558.1,2557.4,0.08216989]
[1647025708884,0.23689983,2558.1,2557.4,0.08216989]
[1647025709082,0.71213721,2558.3,2557.9,0.07405966]
[1647025709284,1.12329575,2558.6,2557.9,4.5028624]
[1647025709285,0.71213721,2558.4,2557.9,4.5028624]
[1647025709483,1.4470723,2558.9,2558.3,0.9079859]
[1647025709484,0.71213721,2558.5,2558.3,0.9079859]
[1647025709693,0.71213721,2558.6,2558.4,0.08272828]
[1647025709882,0.71213721,2558.6,2558.5,0.9079859]
[1647025710083,0.71213721,2558.8,2558.6,0.07676864]
[1647025710284,7.34,2559.0,2558.6,0.07676864]
[1647025710482,7.34,2559.0,2558.9,0.9079859]
[1647025710684,0.71213721,2559.2,2558.9,0.9079859]
[1647025710886,2.12329575,2559.5,2559.1,0.9079859]
[1647025710887,0.71213721,2559.3,2559.1,0.9079859]
[1647025711084,0.99246595,2559.0,2558.9,0.07426783]
[1647025711285,0.99246595,2559.0,2558.6,0.06368993]
[1647025711489,0.94246595,2559.0,2558.7,1.13267989]
[1647025711685,0.94246595,2559.0,2558.8,0.07758274]
[1647025711686,0.84246595,2559.0,2558.8,0.07758274]
[1647025711892,0.84246595,2559.0,2558.8,3.57758274]
[1647025712086,0.84246595,2559.0,2558.9,0.06620608]
[1647025713742,0.84246595,2559.0,2558.9,3.56620608]
[1647025713941,0.84246595,2559.0,2558.9,1.06620608]
[1647025714141,0.74246595,2559.0,2558.9,1.06620608]
[1647025714341,0.74246595,2559.0,2558.9,0.06620608]
[1647025715843,0.74246595,2559.0,2558.8,0.13819997]
[1647025716886,0.74641652,2559.0,2558.8,0.13819997]
[1647025717486,0.82107298,2559.0,2558.8,0.13819997]
[1647025717787,0.81712241,2559.0,2558.8,0.13819997]
[1647025718011,0.82107298,2559.0,2558.8,0.13819997]
[1647025718988,0.81712241,2559.0,2558.8,0.13819997]
[1647025719187,0.82095374,2559.0,2558.8,0.13819997]
[1647025719790,0.82095374,2559.0,2558.8,0.20909363]
[1647025720257,0.81712241,2559.0,2558.8,0.13819997]
[1647025720455,0.82095374,2559.0,2558.8,0.13819997]
[1647025721459,0.81712241,2559.0,2558.8,0.13819997]
[1647025721659,0.82095374,2559.0,2558.8,0.13819997]
[1647025722358,0.82095374,2559.0,2558.8,1.11499997]
[1647025722564,0.82095374,2559.0,2558.9,0.07389987]
[1647025722565,0.81712241,2559.0,2558.9,0.07389987]
[1647025722965,0.81712241,2559.0,2558.8,0.13819997]
[1647025722966,0.82097772,2559.0,2558.8,0.13819997]
[1647025723801,0.81712241,2559.0,2558.8,0.13819997]
[1647025723997,0.82097772,2559.0,2558.8,0.13819997]
[1647025724398,0.82097772,2559.0,2558.9,0.07527741]
[1647025725106,0.81712241,2559.0,2558.9,0.07527741]
[1647025725806,0.81712241,2559.0,2558.8,0.13819997]
[1647025726405,0.82097232,2559.0,2558.8,0.13819997]
[1647025726606,0.82097232,2559.0,2558.8,3.63819997]
[1647025726807,0.82097232,2559.0,2558.8,5.61496997]
[1647025727007,0.82097232,2559.0,2558.9,3.6953]
[1647025727207,0.82097232,2559.0,2558.9,1.1953]
[1647025727448,0.81712241,2559.0,2558.9,1.1953]
[1647025727643,0.05712241,2559.0,2558.9,3.6953]
[1647025727838,0.05712241,2559.0,2558.9,4.6953]
[1647025728037,0.1143789,2559.0,2558.9,4.6953]
[1647025728441,0.05427258,2560.1,2559.0,4.29554065]
[1647025728738,0.05427258,2560.1,2559.6,1.09111324]
[1647025728941,0.05986696,2560.5,2559.6,2.06766654]
[1647025729139,0.0197294,2560.7,2559.6,2.06766654]
[1647025729340,0.0197294,2560.7,2559.8,0.25]
[1647025730146,0.0197294,2560.7,2560.3,0.9763026]
[1647025730342,0.0197294,2560.7,2559.9,0.1952]
[1647025730343,1.08407592,2560.1,2559.9,0.1952]
[1647025730944,1.08407592,2560.1,2559.8,0.25]
[1647025731183,1.08689971,2560.1,2559.8,0.25]
[1647025732088,1.08407592,2560.1,2559.8,0.25]
[1647025732489,1.08689971,2560.1,2559.8,0.25]
[1647025733090,1.13671703,2560.1,2559.8,0.25]
[1647025733291,0.05130193,2560.0,2559.2,0.02588386]
[1647025733689,0.97689,2559.8,2559.2,0.02588386]
[1647025733890,0.05901913,2559.6,2559.2,0.02588386]
[1647025734491,0.05849508,2559.9,2559.2,0.02588386]
[1647025734953,0.00410659,2559.5,2559.2,0.02588386]
[1647025735741,0.05849508,2559.9,2559.2,0.02588386]
[1647025736145,0.06635748,2559.5,2559.2,0.02588386]
[1647025736947,3.5,2559.8,2559.2,0.02588386]
[1647025737149,11.89,2560.0,2559.2,0.02588386]
[1647025737150,15.952,2560.0,2559.2,0.02588386]
[1647025737448,15.952,2560.0,2559.0,1.00270068]
[1647025737449,0.00410661,2559.5,2559.0,1.00270068]
[1647025738248,0.06479844,2559.9,2559.0,1.00270068]
[1647025738447,0.00410342,2559.4,2559.0,1.00270068]
[1647025739486,0.05698282,2559.7,2559.0,1.00270068]
[1647025739687,0.00410345,2559.3,2559.0,1.00270068]
[1647025740088,0.00410345,2559.3,2559.0,1.41595769]
[1647025740493,0.00410345,2559.3,2559.1,0.1953]
[1647025740694,0.01618104,2559.9,2559.1,2.52837861]
[1647025740890,0.01618104,2559.9,2559.4,1.07461127]
[1647025741089,0.01618104,2559.9,2559.4,1.73779785]
[1647025741292,0.01618104,2559.9,2559.5,0.41316897]
[1647025741892,0.01618104,2559.9,2559.6,0.97658]
[1647025742093,0.00410644,2559.8,2559.5,0.41316897]
[1647025742542,0.01621561,2559.7,2559.5,0.41316897]
[1647025743344,0.0203221,2559.7,2559.5,0.41316897]
[1647025743546,0.0203221,2559.7,2559.6,4.5878981]
[1647025743745,0.0203221,2559.7,2559.4,2.20311]
[1647025743945,0.0203221,2559.7,2559.5,0.1953]
[1647025744146,0.01621561,2559.7,2559.4,2.39841]
[1647025744547,0.02032212,2559.7,2559.4,2.39841]
[1647025745347,0.01621561,2559.7,2559.4,2.39841]
[1647025745750,0.02019893,2559.7,2559.4,2.39841]
[1647025746595,0.01621561,2559.7,2559.4,2.39841]
[1647025746993,0.02019893,2559.7,2559.4,2.39841]
[1647025747595,0.02019893,2559.7,2559.4,0.25]
[1647025747794,0.02019893,2559.7,2559.6,0.02802819]
[1647025747795,0.01621561,2559.7,2559.6,0.02802819]
[1647025747994,0.02978505,2559.5,2558.9,1.1722]
[1647025748193,1.59803809,2559.4,2558.9,1.4222]
[1647025748400,0.04918188,2559.3,2558.9,1.4222]
[1647025748600,0.04918188,2559.3,2558.9,1.56765739]
[1647025748795,0.02978505,2559.5,2558.9,2.54441929]
[1647025749194,0.02978505,2559.5,2559.0,0.97686]
[1647025749195,1.59804883,2559.4,2559.0,0.97686]
[1647025749495,0.00384548,2559.2,2559.0,0.97686]
[1647025750336,0.06061038,2559.3,2559.0,0.97686]
[1647025750537,1.60190283,2559.2,2559.0,0.97686]
[1647025750946,0.00384548,2559.2,2559.0,0.97686]
[1647025751543,1.59797013,2559.4,2559.0,0.97686]
[1647025751742,0.00384548,2559.2,2559.0,0.97686]
[1647025752744,0.06611206,2559.3,2559.1,1.9815213]
[1647025752947,1.60184373,2559.2,2559.1,1.9815213]
[1647025753891,1.59797013,2559.2,2559.1,1.9815213]
[1647025754093,0.06611206,2559.3,2559.2,6.0]
[1647025754094,0.00387358,2559.3,2559.2,6.0]
[1647025754295,0.00387358,2559.3,2559.2,8.33954725]
[1647025754495,0.00387358,2559.3,2559.2,20.36041037]
[1647025754991,0.02978505,2559.5,2559.2,20.36041037]
[1647025755195,0.02978505,2559.5,2559.4,3.0]
[1647025755394,0.02978505,2559.5,2559.4,1.53844]
[1647025755594,0.02978505,2559.5,2559.4,2.53844]
[1647025755793,0.02978505,2559.5,2559.4,1.83844]
[1647025755999,0.02978505,2559.5,2559.4,2.83844]
[1647025756196,0.69192226,2560.0,2559.5,3.5]
[1647025756395,0.00386713,2559.6,2559.5,5.70299]
[1647025756795,0.00386713,2559.6,2559.5,6.70299]
[1647025756996,0.00386713,2559.6,2559.5,3.20299]
[1647025757457,0.69192226,2560.0,2559.6,0.9765053]
[1647025757647,0.69192226,2560.0,2559.7,2.08187219]
[1647025757848,0.69192226,2560.0,2559.7,2.38187219]
[1647025758148,1.08407592,2560.1,2559.7,2.38187219]
[1647025758347,1.08407592,2560.1,2559.7,1.27651]
[1647025758948,0.00386694,2560.0,2559.7,1.27651]
[1647025759349,0.00386694,2560.0,2559.7,0.97651]
[1647025759551,0.06271697,2560.0,2559.6,1.9765053]
[1647025759749,0.05885003,2560.0,2559.6,0.9765053]
[1647025760152,0.06271842,2560.0,2559.5,0.25]
[1647025760750,0.06271842,2560.0,2559.6,0.97666]
[1647025760951,0.05885003,2560.0,2559.6,0.97666]
[1647025761402,0.00386843,2559.9,2559.6,0.97666]
[1647025762003,0.00386843,2559.9,2559.6,2.9297026]
[1647025762298,0.05885003,2560.0,2559.8,0.00111474]
[1647025762501,0.05885003,2560.0,2559.9,0.02473338]
[1647025762700,0.05885003,2560.0,2559.9,0.01837898]
[1647025764003,1.163073,2560.1,2559.9,0.01837898]
[1647025764607,1.15920498,2560.1,2559.9,0.01837898]
[1647025764804,1.15920498,2560.1,2560.0,1.10742268]
[1647025765047,1.15920498,2560.1,2559.9,0.01837898]
[1647025765048,1.16307298,2560.1,2559.9,0.01837898]
[1647025765845,1.15920498,2560.1,2559.9,0.01837898]
[1647025766251,1.16307298,2560.1,2559.9,0.01837898]
[1647025766548,1.16307298,2560.1,2559.9,0.00213241]
[1647025766951,1.16307298,2560.1,2560.0,0.00111449]
[1647025767150,1.15920498,2560.1,2560.0,0.00111449]
[1647025767348,1.16310062,2560.1,2560.0,0.00111449]
[1647025768150,1.15920498,2560.1,2560.0,0.00111449]
[1647025768550,1.20861495,2560.1,2559.8,2.25052238]
[1647025768794,1.20861495,2560.1,2559.8,1.25052238]
[1647025769795,1.21251061,2560.1,2559.8,0.97656]
[1647025770595,1.20861495,2560.1,2559.8,0.97656]
[1647025770798,0.05891418,2560.0,2559.8,0.97656]
[1647025770995,1.15920498,2560.1,2559.8,0.97656]
[1647025770996,1.16308064,2560.1,2559.8,0.97656]
[1647025771898,1.15920498,2560.1,2559.8,0.97656]
[1647025772197,1.16308064,2560.1,2559.8,1.27656]
[1647025772449,1.16308064,2560.1,2559.9,1.0]
[1647025772640,1.16308064,2560.1,2560.0,0.0458902]
[1647025773039,1.15920498,2560.1,2560.0,0.0458902]
[1647025774440,1.15920498,2560.1,2560.0,3.5458902]
[1647025774739,1.15920498,2560.1,2560.0,0.0458902]
[1647025774938,1.15920498,2560.1,2560.0,4.5458902]
[1647025775944,0.0197294,2560.7,2560.6,1.09992863]
[1647025776202,0.0197294,2560.7,2560.2,3.5720799]
[1647025776412,0.0197294,2560.7,2560.3,1.87777038]
[1647025776603,0.0197294,2560.7,2560.3,0.90163038]
[1647025776800,0.0197294,2560.7,2560.4,0.3]
[1647025777000,0.0197294,2560.7,2560.3,0.90163038]
[1647025777399,0.0197294,2560.7,2560.5,0.97613]
[1647025777800,0.0197294,2560.7,2560.3,0.25]
[1647025777801,1.59732929,2560.6,2560.3,0.25]
[1647025778000,1.65007417,2560.6,2560.3,0.25]
[1647025778201,1.59732929,2560.5,2560.3,0.25]
[1647025779104,0.05274488,2560.6,2560.3,1.22639]
[1647025779301,0.00412331,2560.5,2560.3,1.22639]
[1647025779502,0.00412331,2560.5,2560.3,0.25]
[1647025780154,0.00412331,2560.5,2560.4,0.97631]
[1647025780355,1.59729951,2560.6,2560.4,0.97631]
[1647025780557,0.00412331,2560.5,2560.4,0.97631]
[1647025780754,1.59729951,2560.6,2560.4,0.97631]
[1647025780755,1.50142282,2560.6,2560.4,0.97631]
[1647025782559,0.10747225,2560.5,2560.4,0.03495419]
[1647025782758,13.49073698,2560.5,2560.4,0.03495419]
[1647025782959,3.5,2560.4,2559.8,0.3788]
[1647025783160,0.562,2560.3,2559.8,0.3788]
[1647025783360,0.562,2560.3,2559.3,0.97677]
[1647025783693,0.562,2560.3,2559.1,0.25]
[1647025784296,1.95364,2560.1,2559.2,0.9768]
[1647025784693,1.95364,2560.1,2559.1,3.75]
[1647025784892,1.95364,2560.1,2559.1,0.25]
[1647025785292,1.95364,2560.1,2559.1,2.20348]
[1647025785494,0.9768,2559.9,2559.1,3.1802414]
[1647025785695,0.97674,2560.2,2559.2,3.5]
[1647025785897,1.1824,2560.4,2559.3,0.1953]
[1647025786094,1.1824,2560.4,2559.3,0.27147308]
[1647025786497,1.1824,2560.4,2559.5,0.97645]
[1647025786698,0.06214698,2560.5,2559.5,4.72645]
[1647025786905,0.06214698,2560.5,2559.5,3.75]
[1647025787746,0.04889119,2560.3,2559.5,3.77823769]
[1647025787948,0.04889119,2560.3,2559.6,1.95302]
[1647025787949,1.02556119,2560.3,2559.6,1.95302]
[1647025788146,1.02556119,2560.3,2559.5,0.27823769]
[1647025788147,1.95353,2560.2,2559.5,0.27823769]
[1647025788346,12.91556119,2560.3,2559.5,0.02823769]
[1647025788547,0.562,2560.2,2559.5,0.02823769]
[1647025788947,0.97676,2560.1,2559.5,0.02823769]
[1647025789148,1.95366,2560.0,2559.5,0.02823769]
[1647025790248,0.97678,2559.9,2559.5,0.02823769]
[1647025790449,3.79228,2560.2,2559.5,0.02823769]
[1647025792010,0.97672,2560.1,2559.5,0.02823769]
[1647025793010,0.04674888,2559.9,2559.4,1.00490125]
[1647025793210,0.06215485,2560.2,2559.4,2.23157105]
[1647025793411,0.06215485,2560.2,2559.4,0.27819125]
[1647025793611,0.06215485,2560.2,2559.6,0.97661]
[1647025794213,0.06215485,2560.2,2559.4,0.27819125]
[1647025794415,0.97674,2560.1,2559.4,0.27819125]
[1647025794614,0.05006286,2559.9,2559.4,0.27819125]
[1647025794958,0.05006286,2559.9,2559.4,1.45022125]
[1647025795742,0.05006286,2559.9,2559.4,1.25492125]
[1647025796347,0.05006286,2559.9,2559.5,0.9767]
[1647025797749,0.05006286,2559.9,2559.8,0.02816803]
[1647025797951,0.05347825,2559.6,2559.4,1.2266763]
[1647025798349,0.05347825,2559.6,2559.4,0.25]
[1647025798789,0.05347825,2559.6,2559.4,1.22675]
[1647025800794,0.05347825,2559.6,2559.5,3.5]
[1647025800993,0.05347825,2559.6,2559.5,3.589549]
[1647025801194,0.05347825,2559.6,2559.5,1.089549]
[1647025801399,0.05347825,2559.6,2559.5,3.97877937]
[1647025801600,0.05347825,2559.6,2559.5,0.47877937]
[1647025803045,0.05347825,2559.6,2559.5,3.78347937]
[1647025803245,0.05347825,2559.6,2559.5,4.78347937]
[1647025803445,0.10116997,2559.6,2559.5,4.97877937]
[1647025804748,0.10116997,2559.6,2559.5,4.784849]
[1647025804947,0.10116997,2559.6,2559.5,1.284849]
[1647025805351,0.10116997,2559.6,2559.5,0.284849]
[1647025805552,0.10116997,2559.6,2559.4,1.22675]
[1647025805749,0.10116997,2559.6,2559.4,0.25]
[1647025806193,0.10116997,2559.6,2559.0,1.96802077]
[1647025806399,0.10116997,2559.6,2559.0,0.01445087]
[1647025806400,1.597806,2559.5,2559.0,0.01445087]
[1647025806698,0.04282544,2559.4,2558.6,1.3904]
[1647025806897,0.04282544,2559.4,2558.6,2.2038683]
[1647025807097,1.01981544,2559.4,2558.9,0.97692]
[1647025807302,0.0490696,2559.3,2558.9,0.97692]
[1647025807500,0.0490696,2559.3,2558.8,0.01445188]
[1647025807700,0.05154358,2559.5,2558.8,0.01445188]
[1647025807902,0.05080394,2559.3,2558.6,0.25]
[1647025808100,0.97696,2559.4,2558.6,0.25]
[1647025808303,0.04510856,2559.3,2558.6,0.25]
[1647025808905,0.04510856,2559.3,2558.6,1.22692]
[1647025809104,0.04510856,2559.3,2558.6,0.25]
[1647025810144,0.04211574,2559.0,2558.6,0.25]
[1647025810342,7.8157,2558.9,2558.6,0.25]
[1647025810546,0.04680935,2558.8,2558.6,0.25]
[1647025810742,7.8157,2558.7,2558.6,0.25]
[1647025810943,7.8157,2558.7,2558.4,0.99149613]
[1647025811145,0.05011986,2558.6,2558.4,0.01439613]
[1647025811349,3.9157,2558.5,2558.4,0.01439613]
[1647025811545,3.9157,2558.5,2557.7,0.83698472]
[1647025811745,0.04396151,2558.4,2557.7,0.83698472]
[1647025811947,3.9157,2558.3,2557.7,0.83698472]
[1647025812145,3.9157,2558.3,2557.8,0.97731]
[1647025813346,3.9157,2558.3,2558.0,0.97719]
[1647025814392,3.9157,2558.3,2558.0,1.954373]
[1647025814593,3.9157,2558.3,2558.0,2.254373]
[1647025814794,3.9157,2558.3,2558.0,2.44830337]
[1647025814993,3.9157,2558.3,2558.1,3.5]
[1647025815394,3.9157,2558.3,2558.2,0.97707]
[1647025815594,3.9157,2558.3,2558.2,4.47707]
[1647025815798,3.9157,2558.3,2558.2,5.47707]
[1647025816798,3.9157,2558.3,2558.2,1.97707]
[1647025816999,3.9157,2558.3,2558.2,4.47707]
[1647025817197,3.9157,2558.3,2558.2,9.37707]
[1647025818243,3.95988361,2558.3,2558.2,9.37707]
[1647025820547,3.95988361,2558.3,2558.2,5.87707]
[1647025820747,3.95988361,2558.3,2558.2,3.9]
[1647025831000,3.9157,2558.3,2558.2,3.9]
[1647025831201,3.9157,2558.3,2558.2,4.87712]
[1647025831409,3.9157,2558.3,2558.2,5.29050031]
[1647025831801,3.91467447,2558.3,2558.2,5.29050031]
[1647025835044,3.91467447,2558.3,2558.2,4.87712]
[1647025836302,3.91467447,2558.3,2558.2,3.9]
[1647025840345,3.91467447,2558.3,2558.2,4.2]
[1647025840545,3.91467447,2558.3,2558.2,3.9]
[1647025842651,3.96665866,2558.3,2558.2,3.9]
[1647025843352,3.96665866,2558.3,2558.2,5.4]
[1647025847841,3.96665866,2558.3,2558.2,2.93278807]
[1647025848342,14.89,2558.2,2557.7,0.01438129]
[1647025848542,3.91467447,2558.1,2557.7,0.01438129]
[1647025848942,3.91467447,2558.1,2557.6,0.25]
[1647025848943,0.97774,2557.8,2557.6,0.25]
[1647025849143,3.91467447,2557.7,2557.6,0.25]
[1647025849343,3.91467447,2557.7,2557.4,0.01438298]
[1647025849942,0.97777,2557.6,2557.3,0.25]
[1647025850143,3.91467447,2557.5,2557.3,0.25]
[1647025852404,3.91467447,2557.5,2557.3,3.75]
[1647025852602,3.52320703,2557.5,2557.4,0.19393037]
[1647025852800,3.52320703,2557.5,2557.4,3.69393037]